bitfinex/quotes_ETHUSD_20250908
["timestamp","ask_amount","ask_price","bid_price","bid_amount"]
[1757333873633,2.75601195,4314.6,4314.4,3.967]
[1757333873873,0.4383,4314.5,4314.4,3.967]
[1757333874559,3.07006567,4314.5,4314.4,3.967]
[1757333874761,0.7523,4314.5,4314.4,3.967]
[1757333875432,3.07006567,4314.5,4314.4,3.967]
[1757333876116,0.1152,4314.9,4314.4,3.967]
[1757333876315,0.0002,4315.3,4315.2,14.69290553]
[1757333876556,0.0002,4315.3,4315.2,24.02421027]
[1757333876859,0.0002,4315.3,4315.2,18.80794761]
[1757333877260,0.0002,4315.3,4315.2,15.50555542]
[1757333877424,0.0002,4315.3,4315.2,21.15815295]
[1757333878958,0.0002,4315.3,4315.2,19.50355542]
[1757333879260,0.0002,4315.3,4315.2,21.15781439]
[1757333879830,0.0002,4315.3,4315.2,10.97205647]
[1757333880034,0.0002,4315.3,4315.2,18.09095542]
[1757333880232,0.0002,4315.3,4315.2,19.50055542]
[1757333881040,0.0002,4315.3,4315.2,19.49855542]
[1757333881671,0.0002,4315.3,4315.2,21.15281439]
[1757333882575,0.0002,4315.3,4315.2,19.49555542]
[1757333882887,0.0002,4315.3,4315.2,21.14981439]
[1757333883752,0.0002,4315.3,4315.2,19.49555542]
[1757333883977,0.0002,4315.3,4315.2,25.68331334]
[1757333884388,0.0002,4315.3,4315.2,24.27371334]
[1757333885390,0.0002,4315.3,4315.2,24.27171334]
[1757333885987,0.0002,4315.3,4315.2,24.26871334]
[1757333886704,0.0002,4315.3,4315.2,18.07995542]
[1757333886893,0.7525,4315.3,4315.2,17.38434761]
[1757333887055,2.1113,4315.3,4315.2,17.38434761]
[1757333887564,0.3142,4315.3,4315.2,13.40034761]
[1757333887750,2.1113,4315.3,4315.2,11.08295792]
[1757333887982,2.1113,4315.3,4315.2,15.06595792]
[1757333888145,2.1113,4315.3,4315.2,0.1152]
[1757333888389,2.1113,4315.3,4315.2,1.8952]
[1757333888592,4.63976599,4315.3,4315.2,5.763]
[1757333889399,2.31738969,4315.2,4315.1,0.002]
[1757333889748,4.42848969,4315.2,4315.1,3.984]
[1757333890773,4.42848969,4315.2,4315.1,0.002]
[1757333890950,5.25092526,4315.2,4315.1,3.984]
[1757333891150,5.25092526,4315.2,4315.1,0.002]
[1757333895104,5.25012526,4315.2,4315.1,0.002]
[1757333900628,4.42848969,4315.2,4315.1,0.002]
[1757333910236,5.22048969,4315.2,4315.1,0.002]
[1757333917103,8.22048969,4315.2,4315.1,0.002]
[1757333917260,3.792,4315.1,4314.8,1e-08]
[1757333917462,0.792,4314.4,4314.3,0.002]
[1757333917668,12.15491939,4314.4,4314.3,0.002]
[1757333917868,14.02281939,4314.4,4314.3,0.002]
[1757333918064,14.02281939,4314.4,4313.8,1e-08]
[1757333918065,0.792,4314.2,4313.8,1e-08]
[1757333918296,0.792,4313.8,4313.1,0.02]
[1757333918448,3.420403,4313.5,4313.1,0.02]
[1757333918781,7.375403,4313.5,4313.1,0.02]
[1757333918980,10.39945285,4313.5,4313.1,0.02]
[1757333920690,10.39865285,4313.5,4313.1,0.02]
[1757333921057,10.39865285,4313.5,4313.3,0.002]
[1757333929131,13.39865285,4313.5,4313.3,0.002]
[1757333929445,20.45865285,4313.5,4313.3,0.002]
[1757333934438,20.55150153,4313.5,4313.3,0.002]
[1757333939376,20.55250153,4313.5,4313.3,0.002]
[1757333942161,22.99350153,4313.5,4313.3,0.002]
[1757333942336,20.55250153,4313.5,4313.3,0.002]
[1757333946057,20.55170153,4313.5,4313.3,0.002]
[1757333946668,19.14160153,4313.5,4313.3,0.002]
[1757333947186,20.47580153,4313.5,4313.3,0.002]
[1757333947380,20.69289041,4313.5,4313.3,0.002]
[1757333947544,10.992,4313.5,4313.4,1.3495]
[1757333947746,7.061,4313.5,4313.4,1.3495]
[1757333949087,9.379303,4313.5,4313.4,0.002]
[1757333949239,10.171303,4313.5,4313.4,0.002]
[1757333953582,10.934603,4313.5,4313.4,0.002]
[1757333953790,12.4902885,4313.5,4313.4,0.002]
[1757333954007,12.0324885,4313.5,4313.4,0.002]
[1757333954496,12.4902885,4313.5,4313.4,0.002]
[1757333955759,12.0324885,4313.5,4313.4,0.002]
[1757333955959,9.7141855,4313.5,4313.4,0.002]
[1757333956271,12.0324885,4313.5,4313.4,0.002]
[1757333957243,9.7141855,4313.5,4313.4,0.002]
[1757333957803,12.0324885,4313.5,4313.4,0.002]
[1757333957998,10.986,4313.5,4313.4,1.3495]
[1757333958624,0.1162,4313.5,4313.4,1.3495]
[1757333958808,0.001,4313.5,4313.4,3.66785674]
[1757333967321,0.001,4313.5,4313.4,6.24035674]
[1757333968305,0.001,4313.5,4313.4,2.32035674]
[1757333968500,0.001,4313.5,4313.4,0.002]
[1757333968501,2.0839,4313.5,4313.4,0.002]
[1757333968700,2.29229,4313.5,4313.4,0.002]
[1757333968920,2.0839,4313.5,4313.4,0.002]
[1757333969100,0.7679,4313.5,4313.4,0.002]
[1757333971546,0.7671,4313.5,4313.4,0.002]
[1757333974545,0.4532,4313.5,4313.4,0.002]
[1757333976038,0.7671,4313.5,4313.4,0.002]
[1757333976860,0.4532,4313.5,4313.4,0.002]
[1757333980265,0.7671,4313.5,4313.4,0.002]
[1757333980760,0.0002,4313.5,4313.4,0.002]
[1757333980924,0.4532,4313.5,4313.4,0.002]
[1757333981935,0.7671,4313.5,4313.4,0.002]
[1757333984955,0.0002,4313.5,4313.4,0.002]
[1757333985275,0.4532,4313.5,4313.4,0.002]
[1757333985453,0.4532,4313.5,4313.4,2.32035674]
[1757333986574,0.0002,4313.5,4313.4,2.32035674]
[1757333987100,0.0002,4313.5,4313.4,7.61095674]
[1757333987781,0.0002,4313.5,4313.4,7.72615674]
[1757333992418,0.0002,4313.5,4313.4,2.43555674]
[1757333992595,0.0002,4313.5,4313.4,12.54082273]
[1757333996675,0.0002,4313.5,4313.4,8.62982273]
[1757333996875,0.4524,4313.7,4313.6,2.31824925]
[1757333997077,1.317,4314.0,4313.8,2.31813432]
[1757333997291,1.2762,4313.9,4313.8,2.31813432]
[1757333997491,1.5696,4313.9,4313.8,6.22513432]
[1757333998672,1.5696,4313.9,4313.8,3.906]
[1757333999013,1.5696,4313.9,4313.8,2.31814177]
[1757333999014,2.0297,4313.9,4313.8,2.31814177]
[1757333999318,2.0297,4313.9,4313.8,6.22414177]
[1757334001029,0.4601,4313.9,4313.8,6.22414177]
[1757334001527,0.001,4314.0,4313.9,2.31808804]
[1757334003029,0.7545,4314.0,4313.9,2.31808804]
[1757334003717,2.0307,4314.0,4313.9,2.31808804]
[1757334005228,0.001,4314.0,4313.9,2.31908804]
[1757334005725,0.001,4314.0,4313.9,3.76828804]
[1757334005930,0.001,4314.0,4313.9,6.76828804]
[1757334007329,0.001,4314.4,4313.9,6.76828804]
[1757334007330,0.001,4314.4,4314.0,3.0]
[1757334007546,0.001,4314.4,4314.3,9.19426599]
[1757334007738,0.001,4314.4,4314.3,15.5323391]
[1757334007893,1e-08,4314.8,4314.7,8.51192422]
[1757334008088,1e-08,4314.8,4314.7,15.53212422]
[1757334008293,1e-08,4314.8,4314.7,16.86712422]
[1757334009020,1e-08,4314.8,4314.7,16.95988871]
[1757334009414,1e-08,4314.8,4314.7,18.61364722]
[1757334009824,0.00100001,4314.8,4314.7,18.61364722]
[1757334011060,0.00100001,4314.8,4314.7,16.95988871]
[1757334012649,0.001,4315.2,4315.1,2.31744339]
[1757334012850,0.001,4315.2,4315.1,13.40690938]
[1757334013053,2.0307,4315.2,4315.1,11.11664339]
[1757334013413,2.0307,4315.2,4315.1,7.21264339]
[1757334013648,2.0307,4315.2,4315.1,11.11664339]
[1757334014633,0.7545,4315.2,4315.1,11.11664339]
[1757334019892,0.001,4315.2,4315.1,11.11664339]
[1757334020056,0.001,4315.2,4315.1,11.11764339]
[1757334020754,0.001,4315.2,4315.1,11.11664339]
[1757334022344,0.0002,4315.2,4315.1,11.11664339]
[1757334022568,0.4603,4315.2,4315.1,11.11664339]
[1757334024282,0.7751,4315.2,4315.1,11.11664339]
[1757334028976,0.0002,4315.2,4315.1,11.11664339]
[1757334029532,0.4495,4315.2,4315.1,11.11664339]
[1757334030383,0.0002,4315.2,4315.1,11.11664339]
[1757334031258,0.0002,4315.2,4315.1,11.11764339]
[1757334031433,0.0002,4315.3,4315.2,5.31738969]
[1757334031633,0.0002,4315.3,4315.2,12.84565568]
[1757334031835,0.0002,4315.3,4315.2,12.84665568]
[1757334032280,0.0002,4315.3,4315.2,12.96185568]
[1757334032663,0.001,4315.7,4315.6,2.3171749]
[1757334032866,0.001,4316.1,4315.6,2.3171749]
[1757334032867,0.001,4316.1,4315.7,5.3171212]
[1757334033099,0.001,4316.1,4316.0,2.31696014]
[1757334033245,0.001,4316.1,4316.0,10.99996014]
[1757334033445,0.001,4316.1,4316.0,17.31042613]
[1757334034188,0.001,4316.1,4316.0,17.30942613]
[1757334034384,1.231,4316.1,4316.0,17.30942613]
[1757334035375,1.231,4316.1,4316.0,17.31042613]
[1757334035853,2.461,4316.1,4316.0,17.31042613]
[1757334036406,2.461,4316.1,4316.0,17.30942613]
[1757334037209,2.461,4316.1,4316.0,17.31042613]
[1757334037359,3.691,4316.1,4316.0,17.31042613]
[1757334038471,3.691,4316.1,4316.0,18.4212009]
[1757334038989,4.921,4316.1,4316.0,18.4212009]
[1757334039528,0.4493,4316.6,4316.1,5.31690646]
[1757334039671,1e-08,4316.2,4316.1,8.42218735]
[1757334039865,1e-08,4316.2,4316.1,6.76910646]
[1757334040103,1e-08,4316.2,4316.1,7.46459172]
[1757334040306,1.23000001,4316.2,4316.1,9.11833942]
[1757334040521,1e-08,4316.2,4316.1,9.11833942]
[1757334041808,1.23000001,4316.2,4316.1,7.78233942]
[1757334042423,1.23000001,4316.2,4316.1,11.68433942]
[1757334043307,1.23000001,4316.2,4316.1,10.03059172]
[1757334043507,2.46000001,4316.2,4316.1,10.03059172]
[1757334044850,3.69000001,4316.2,4316.1,10.03059172]
[1757334045656,3.69100001,4316.2,4316.1,10.03059172]
[1757334046152,4.92100001,4316.2,4316.1,10.03059172]
[1757334047742,6.15020001,4316.2,4316.1,10.03059172]
[1757334048734,6.15020001,4316.2,4316.1,10.02959172]
[1757334048936,6.59950001,4316.2,4316.1,10.02959172]
[1757334049147,7.82950001,4316.2,4316.1,10.02959172]
[1757334049529,7.38020001,4316.2,4316.1,10.02959172]
[1757334050023,7.38020001,4316.2,4316.1,10.03059172]
[1757334050427,8.61020001,4316.2,4316.1,10.03059172]
[1757334050768,9.05950001,4316.2,4316.1,10.02959172]
[1757334051472,8.61020001,4316.2,4316.1,10.02959172]
[1757334051812,9.84020001,4316.2,4316.1,10.02959172]
[1757334053153,1e-08,4316.2,4316.1,10.03059172]
[1757334053457,1e-08,4316.2,4316.1,17.33563248]
[1757334054474,1e-08,4316.2,4316.1,18.98938018]
[1757334054770,1.23000001,4316.2,4316.1,17.33563248]
[1757334055359,1.23000001,4316.2,4316.1,18.98938018]
[1757334056040,2.46000001,4316.2,4316.1,18.98838018]
[1757334056726,2.90040001,4316.2,4316.1,18.98838018]
[1757334057599,4.13040001,4316.2,4316.1,18.98838018]
[1757334058070,5.69480001,4316.2,4316.1,7.78133942]
[1757334058274,5.69480001,4316.2,4316.1,18.98738018]
[1757334058424,4.42680001,4316.2,4316.1,17.33363248]
[1757334058826,0.4404,4316.5,4316.4,2.31674543]
[1757334059026,0.001,4316.7,4316.6,2.31663809]
[1757334059283,1.269,4316.7,4316.6,13.52267885]
[1757334059431,0.2974,4316.7,4316.6,16.52267885]
[1757334059798,1e-08,4316.8,4316.7,5.31658442]
[1757334060136,1e-08,4316.9,4316.8,2.31653076]
[1757334060345,1e-08,4316.9,4316.8,7.99653076]
[1757334060746,1e-08,4316.9,4316.8,7.99753076]
[1757334061626,0.001,4317.1,4317.0,2.31642344]
[1757334061832,0.4404,4318.0,4317.7,12.62108865]
[1757334062078,0.4404,4318.0,4317.8,10.99499425]
[1757334062389,57.3732,4317.9,4317.8,7.09499425]
[1757334062536,57.3732,4317.9,4317.8,10.99499425]
[1757334062739,57.3732,4317.9,4317.8,7.09499425]
[1757334062964,57.3732,4317.9,4317.8,10.99499425]
[1757334063662,58.6032,4317.9,4317.8,10.99499425]
[1757334064585,58.6032,4317.9,4317.8,7.09499425]
[1757334064883,58.6032,4317.9,4317.8,10.99499425]
[1757334065065,59.8332,4317.9,4317.8,10.99499425]
[1757334066588,61.0632,4317.9,4317.8,10.99499425]
[1757334067597,63.33110797,4317.9,4317.7,3.9]
[1757334067788,63.33110797,4317.9,4317.0,1.779]
[1757334067789,1.7084,4317.8,4317.0,1.779]
[1757334068087,1.7084,4317.7,4317.2,2.3163122]
[1757334068386,62.55630797,4317.9,4317.1,3.9]
[1757334068387,1.7084,4317.6,4317.1,2.31635697]
[1757334068542,0.2964,4317.3,4317.2,6.21531613]
[1757334068742,0.2964,4317.3,4317.2,2.31631613]
[1757334068976,0.2964,4317.3,4317.2,6.21531613]
[1757334069158,3.2348,4317.3,4317.2,6.21531613]
[1757334070468,4.4648,4317.3,4317.2,6.21531613]
[1757334070840,4.4648,4317.3,4317.2,2.31631613]
[1757334071187,4.4648,4317.3,4317.2,6.21531613]
[1757334071892,5.6948,4317.3,4317.2,6.21531613]
[1757334073162,5.694,4317.3,4317.2,6.21531613]
[1757334073374,6.924,4317.3,4317.2,6.21531613]
[1757334074850,8.154,4317.3,4317.2,6.21531613]
[1757334076257,9.384,4317.3,4317.2,6.21531613]
[1757334077574,10.614,4317.3,4317.2,6.21531613]
[1757334078109,10.614,4317.3,4317.2,3.899]
[1757334078412,11.6754,4317.3,4317.2,3.899]
[1757334079023,12.9054,4317.3,4317.2,3.899]
[1757334080317,12.9054,4317.3,4317.0,4.09542146]
[1757334080525,1.7084,4317.2,4317.1,3.899]
[1757334080871,2.0048,4317.2,4317.1,3.899]
[1757334082008,3.2348,4317.2,4317.1,3.899]
[1757334082916,3.2348,4317.2,4317.1,3.901]
[1757334083378,4.4648,4317.2,4317.1,0.002]
[1757334083576,4.4648,4317.2,4317.1,3.901]
[1757334085013,5.6948,4317.2,4317.1,3.901]
[1757334085815,5.6948,4317.2,4317.1,0.002]
[1757334085816,13.63431,4317.2,4317.1,0.002]
[1757334086126,13.63431,4317.2,4316.1,1.65660859]
[1757334086127,0.792,4317.0,4316.3,1.686]
[1757334086416,0.2874,4316.4,4316.3,1.686]
[1757334086796,2.0965,4316.4,4316.3,1.686]
[1757334087408,0.4529,4316.7,4316.3,1.6915]
[1757334087578,0.4529,4316.7,4316.5,2.31665111]
[1757334087918,0.4529,4316.7,4316.5,6.21465111]
[1757334088118,0.7403,4316.6,4316.5,3.898]
[1757334088677,2.0965,4316.6,4316.5,3.898]
[1757334089500,3.3265,4316.6,4316.5,3.898]
[1757334090918,4.5565,4316.6,4316.5,3.898]
[1757334092220,5.7865,4316.6,4316.5,3.898]
[1757334092822,5.7865,4316.6,4316.1,0.002]
[1757334092823,8.10313809,4316.6,4316.1,0.002]
[1757334093026,1.8091,4316.5,4316.2,3.898]
[1757334093202,0.2874,4316.3,4316.1,0.002]
[1757334093538,0.2874,4316.3,4316.2,3.898]
[1757334093892,2.0965,4316.3,4316.2,3.898]
[1757334095515,3.3265,4316.3,4316.2,3.898]
[1757334096212,1.9703,4316.3,4316.2,3.898]
[1757334096895,3.2003,4316.3,4316.2,3.898]
[1757334098381,4.4303,4316.3,4316.2,3.898]
[1757334098627,4.4295,4316.3,4316.2,3.898]
[1757334099788,5.6595,4316.3,4316.2,3.898]
[1757334100286,5.6595,4316.3,4316.2,10.08282999]
[1757334101201,6.8895,4316.3,4316.2,10.08282999]
[1757334102428,6.6029,4316.3,4316.2,10.08282999]
[1757334102699,7.38,4316.3,4316.2,10.08282999]
[1757334103927,8.61,4316.3,4316.2,10.08282999]
[1757334104317,9.0629,4316.3,4316.2,10.08282999]
[1757334105295,10.2929,4316.3,4316.2,10.08282999]
[1757334105499,9.84,4316.3,4316.2,10.08282999]
[1757334105710,9.84,4316.3,4316.2,10.08962999]
[1757334106340,9.84,4316.3,4316.2,10.08282999]
[1757334106720,11.07,4316.3,4316.2,10.08282999]
[1757334106927,11.5229,4316.3,4316.2,10.08282999]
[1757334107232,11.8103,4316.3,4316.2,10.08282999]
[1757334107976,11.5229,4316.3,4316.2,10.08282999]
[1757334108172,12.3,4316.3,4316.2,10.08282999]
[1757334108376,12.7529,4316.3,4316.2,10.08282999]
[1757334108558,13.0403,4316.3,4316.2,10.08282999]
[1757334109763,14.2703,4316.3,4316.2,10.08282999]
[1757334110225,13.9829,4316.3,4316.2,10.08182999]
[1757334110721,13.53,4316.3,4316.2,10.08182999]
[1757334110927,13.9829,4316.3,4316.2,10.08182999]
[1757334111328,15.2129,4316.3,4316.2,10.08182999]
[1757334111643,14.76,4316.3,4316.2,10.08182999]
[1757334112021,14.76,4316.3,4316.2,12.40548277]
[1757334112224,14.76,4316.3,4316.2,16.90018277]
[1757334112749,15.99,4316.3,4316.2,16.89598277]
[1757334112945,15.99,4316.3,4316.2,16.90018277]
[1757334113654,15.99,4316.3,4316.2,16.89598277]
[1757334114275,17.22,4316.3,4316.2,16.89598277]
[1757334115662,18.45,4316.3,4316.2,16.89598277]
[1757334116882,19.68,4316.3,4316.2,16.89598277]
[1757334118503,20.91,4316.3,4316.2,16.89598277]
[1757334118714,20.91,4316.3,4316.2,18.55059136]
[1757334118888,16.09021925,4316.3,4316.2,16.90018277]
[1757334119797,17.32021925,4316.3,4316.2,16.90018277]
[1757334120272,17.32021925,4316.3,4316.2,16.89598277]
[1757334121061,18.55021925,4316.3,4316.2,16.89598277]
[1757334122678,19.78021925,4316.3,4316.2,16.89598277]
[1757334123994,6.90294535,4316.3,4316.2,23.08081276]
[1757334124199,1.23,4316.5,4316.4,2.31674543]
[1757334124398,1.23,4316.5,4316.4,9.44374543]
[1757334124559,1.23,4316.5,4316.4,9.45474543]
[1757334124913,1.23,4316.5,4316.4,10.86244543]
[1757334125283,2.46,4316.5,4316.4,10.86244543]
[1757334126198,1.23,4316.7,4316.4,8.5415]
[1757334126382,4.92,4317.2,4317.0,11.73325343]
[1757334126588,5.3609,4317.2,4317.0,17.17525343]
[1757334126770,0.3108,4317.1,4317.0,18.82715059]
[1757334127085,1.9817,4317.1,4317.0,17.17525343]
[1757334127283,1.9817,4317.1,4317.0,18.826598]
[1757334128309,3.3264,4317.1,4317.0,18.826598]
[1757334128513,4.5564,4317.1,4317.0,17.17525343]
[1757334129228,4.5564,4317.1,4317.0,14.85882999]
[1757334129393,4.5564,4317.1,4317.0,17.17525343]
[1757334129782,5.7864,4317.1,4317.0,17.17525343]
[1757334130237,5.7864,4317.1,4317.0,7.96382999]
[1757334130436,5.7864,4317.1,4317.0,11.85782999]
[1757334131190,7.0164,4317.1,4317.0,11.85782999]
[1757334131823,7.0164,4317.1,4317.0,7.96382999]
[1757334131997,7.0164,4317.1,4317.0,1.779]
[1757334132201,7.0164,4317.1,4317.0,5.673]
[1757334132703,8.2464,4317.1,4317.0,5.673]
[1757334134002,8.2464,4317.1,4317.0,7.98942344]
[1757334134232,9.4764,4317.1,4317.0,5.673]
[1757334135508,9.4764,4317.1,4317.0,1.779]
[1757334135714,10.7064,4317.1,4317.0,5.673]
[1757334136329,10.7064,4317.1,4317.0,5.7882]
[1757334136710,10.7064,4317.1,4317.0,1.8942]
[1757334136912,11.9364,4317.1,4317.0,5.7882]
[1757334138431,13.1664,4317.1,4317.0,5.7882]
[1757334139736,14.3964,4317.1,4317.0,5.7882]
[1757334140548,18.90456545,4317.1,4317.0,1.8942]
[1757334140840,2.3164771,4316.9,4316.8,0.025]
[1757334141038,2.31658442,4316.7,4316.6,0.002]
[1757334141195,2.31674543,4316.4,4316.2,0.002]
[1757334141397,2.31679911,4316.3,4316.2,3.895]
[1757334141610,5.06563356,4316.3,4316.2,3.895]
[1757334142695,6.29563356,4316.3,4316.2,3.895]
[1757334143940,7.52563356,4316.3,4316.2,3.895]
[1757334145047,12.21063356,4316.3,4316.2,0.002]
[1757334145363,12.90645273,4316.3,4316.2,0.002]
[1757334145497,14.13645273,4316.3,4316.2,0.002]
[1757334147029,14.67063356,4316.3,4316.2,0.002]
[1757334147543,14.76340579,4316.3,4316.2,0.002]
[1757334148041,13.97140579,4316.3,4316.2,0.002]
[1757334148210,9.44739911,4316.3,4316.2,0.002]
[1757334148539,6.575,4316.3,4316.2,0.002]
[1757334149117,6.2652,4316.3,4316.2,0.002]
[1757334149507,6.2644,4316.3,4316.2,0.002]
[1757334149847,7.4944,4316.3,4316.2,0.002]
[1757334151234,8.7244,4316.3,4316.2,0.002]
[1757334152170,2.9590976,4316.7,4316.2,0.002]
[1757334152369,0.1152,4316.5,4316.2,0.002]
[1757334153165,2.4319006,4316.5,4316.2,0.002]
[1757334153469,0.2883,4316.3,4316.2,0.002]
[1757334153832,1.5183,4316.3,4316.2,0.002]
[1757334154261,1.9625,4316.3,4316.2,0.002]
[1757334155443,3.1925,4316.3,4316.2,0.002]
[1757334155635,2.46,4316.3,4316.2,0.002]
[1757334156044,2.46,4316.3,4316.2,4.1807]
[1757334156868,3.69,4316.3,4316.2,4.1807]
[1757334157551,3.69,4316.3,4316.2,3.895]
[1757334158048,4.92,4316.3,4316.2,3.895]
[1757334158886,4.92,4316.3,4316.2,5.5978]
[1757334159095,4.92,4316.3,4316.2,8.02985278]
[1757334159599,6.15,4316.3,4316.2,8.02985278]
[1757334159806,6.15,4316.3,4316.2,5.713]
[1757334160335,6.15,4316.3,4316.2,8.02985278]
[1757334160460,6.15,4316.3,4316.2,6.61275278]
[1757334161159,7.38,4316.3,4316.2,6.61275278]
[1757334161353,7.38,4316.3,4316.2,4.2959]
[1757334162258,7.38,4316.3,4316.2,6.61275278]
[1757334162558,8.61,4316.3,4316.2,6.61275278]
[1757334163755,9.84,4316.3,4316.2,6.61275278]
[1757334164003,9.84,4316.3,4316.2,8.02985278]
[1757334165203,11.07,4316.3,4316.2,5.713]
[1757334165357,11.07,4316.3,4316.2,5.712]
[1757334165788,11.07,4316.3,4316.2,5.662]
[1757334166654,12.3,4316.3,4316.2,5.662]
[1757334168111,13.53,4316.3,4316.2,5.662]
[1757334169170,13.53,4316.3,4316.2,0.3529]
[1757334169381,13.8183,4316.3,4316.2,4.0072]
[1757334169567,15.4925,4316.3,4316.2,4.0072]
[1757334170357,15.4925,4316.3,4316.2,0.1152]
[1757334170358,16.8388,4316.3,4316.2,0.1152]
[1757334170563,16.8388,4316.3,4316.2,4.0072]
[1757334170968,18.0688,4316.3,4316.2,4.0072]
[1757334171618,18.0688,4316.3,4316.2,0.1152]
[1757334171824,18.0688,4316.3,4316.2,4.0072]
[1757334172505,17.9525,4316.3,4316.2,4.0072]
[1757334173321,21.61559911,4316.3,4316.2,3.891]
[1757334173820,22.84559911,4316.3,4316.2,3.891]
[1757334175220,24.07479911,4316.3,4316.2,3.891]
[1757334175581,21.758,4316.3,4316.2,3.891]
[1757334176175,20.4117,4316.3,4316.2,3.891]
[1757334176519,21.6417,4316.3,4316.2,3.891]
[1757334177014,23.95849911,4316.3,4316.2,3.891]
[1757334177513,21.6417,4316.3,4316.2,3.891]
[1757334178119,22.8717,4316.3,4316.2,3.891]
[1757334179515,24.1027,4316.3,4316.2,3.891]
[1757334181216,27.64949911,4316.3,4316.2,3.891]
[1757334181421,27.64949911,4316.3,4316.1,0.002]
[1757334181614,27.20529911,4316.3,4316.2,3.891]
[1757334181793,28.69849911,4316.3,4316.2,3.891]
[1757334182287,26.813,4316.3,4316.2,3.891]
[1757334182496,28.043,4316.3,4316.2,3.891]
[1757334183112,30.35979911,4316.3,4316.2,3.891]
[1757334183311,28.043,4316.3,4316.2,3.891]
[1757334183744,26.5498,4316.3,4316.2,3.891]
[1757334183955,27.7798,4316.3,4316.2,3.891]
[1757334184458,2.31685278,4316.2,4316.1,0.002]
[1757334184831,4.52865278,4316.2,4316.1,0.002]
[1757334185545,5.75865278,4316.2,4316.1,0.002]
[1757334187154,6.98865278,4316.2,4316.1,0.002]
[1757334187461,9.25656075,4316.2,4316.1,0.002]
[1757334188320,13.04856075,4316.2,4316.1,0.002]
[1757334188633,21.58440563,4316.2,4316.1,0.002]
[1757334189959,22.81440563,4316.2,4316.1,0.002]
[1757334191365,24.04440563,4316.2,4316.1,0.002]
[1757334192824,25.27440563,4316.2,4316.1,0.002]
[1757334193220,15.68336075,4316.2,4316.1,0.002]
[1757334193521,17.30545278,4316.2,4316.1,0.002]
[1757334193867,16.87415278,4316.2,4316.1,0.002]
[1757334194186,17.30545278,4316.2,4316.1,0.002]
[1757334194336,18.53545278,4316.2,4316.1,0.002]
[1757334195622,20.02865278,4316.2,4316.1,0.002]
[1757334195820,23.52656075,4316.2,4316.1,0.002]
[1757334197531,24.75656075,4316.2,4316.1,0.002]
[1757334198862,31.81656075,4316.2,4316.1,0.002]
[1757334199167,33.04656075,4316.2,4316.1,0.002]
[1757334200328,33.04576075,4316.2,4316.1,0.002]
[1757334200520,34.27576075,4316.2,4316.1,0.002]
[1757334202167,35.50576075,4316.2,4316.1,0.002]
[1757334203572,36.73576075,4316.2,4316.1,0.002]
[1757334204066,37.52776075,4316.2,4316.1,0.002]
[1757334204974,38.75776075,4316.2,4316.1,0.002]
[1757334206455,39.98776075,4316.2,4316.1,0.002]
[1757334206671,38.50466075,4316.2,4316.1,0.002]
[1757334207720,39.73466075,4316.2,4316.1,0.002]
[1757334209093,40.96466075,4316.2,4316.1,0.002]
[1757334210657,42.19466075,4316.2,4316.1,0.002]
[1757334211110,33.78396075,4316.2,4316.1,0.3004]
[1757334211291,35.40505278,4316.2,4316.1,1.7835]
[1757334212202,36.63505278,4316.2,4316.1,1.7835]
[1757334212756,32.74605278,4316.2,4316.1,1.7835]
[1757334212956,25.68605278,4316.2,4316.1,2.2109]
[1757334213369,25.68685278,4316.2,4316.1,2.2109]
[1757334213567,26.91685278,4316.2,4316.1,2.2109]
[1757334215275,28.14685278,4316.2,4316.1,2.2109]
[1757334216610,29.37685278,4316.2,4316.1,2.2109]
[1757334217912,29.37685278,4316.2,4316.1,1.7835]
[1757334218108,30.60685278,4316.2,4316.1,1.7835]
[1757334219490,31.83685278,4316.2,4316.1,1.7835]
[1757334220512,31.83685278,4316.2,4316.1,0.002]
[1757334220683,36.18651485,4316.2,4316.1,0.002]
[1757334221015,41.30351485,4316.2,4316.1,0.002]
[1757334221219,42.09551485,4316.2,4316.1,0.002]
[1757334221377,45.09551485,4316.2,4316.1,0.002]
[1757334222301,52.51396921,4316.2,4316.1,0.002]
[1757334223096,39.73081485,4316.2,4316.1,0.002]
[1757334223299,37.29685278,4316.2,4316.1,0.002]
[1757334223792,39.27025278,4316.2,4316.1,0.002]
[1757334225090,40.50025278,4316.2,4316.1,0.002]
[1757334225509,44.38725278,4316.2,4316.1,0.002]
[1757334225706,46.65516075,4316.2,4316.1,0.002]
[1757334226019,46.65436075,4316.2,4316.1,0.002]
[1757334226537,47.88436075,4316.2,4316.1,0.002]
[1757334228354,49.11436075,4316.2,4316.1,0.002]
[1757334229702,50.34436075,4316.2,4316.1,0.002]
[1757334231011,51.57436075,4316.2,4316.1,0.002]
[1757334231414,58.63436075,4316.2,4316.1,0.002]
[1757334232541,54.59645278,4316.2,4316.1,0.002]
[1757334232905,54.15505278,4316.2,4316.1,0.002]
[1757334233299,53.85305278,4316.2,4316.1,0.002]
[1757334233945,55.08305278,4316.2,4316.1,0.002]
[1757334234249,55.08405278,4316.2,4316.1,0.002]
[1757334234404,55.39955278,4316.2,4316.1,0.002]
[1757334234942,55.85385278,4316.2,4316.1,0.002]
[1757334235340,57.08385278,4316.2,4316.1,0.002]
[1757334237246,58.31385278,4316.2,4316.1,0.002]
[1757334238614,59.54385278,4316.2,4316.1,0.002]
[1757334238849,54.75176075,4316.2,4316.1,0.002]
[1757334240023,55.98176075,4316.2,4316.1,0.002]
[1757334241611,57.21176075,4316.2,4316.1,0.002]